[Event "11th LCC Rapid 2019"]
[Site "London"]
[Date "2019.12.07"]
[Round "2.1"]
[White "Lucchi, Lorenzo"]
[Black "Gordon, Stephen J"]
[Result "1/2-1/2"]
[WhiteElo "2089"]
[BlackElo "2495"]
[PlyCount "117"]
[EventDate "2019.12.08"]
[EventType "swiss"]
[EventCountry "ENG"]
[TimeControl "15+10"]
[WhiteClock "0:00:21"]
[BlackClock "0:01:25"]

1. e4 {[%emt 0:00:00]} c5 {[%emt 0:00:00]} 2. Nf3 {[%emt 0:00:00]} d6 {[%emt 0:00:00]} 3. g3 {[%emt 0:00:00]} Nc6 {[%emt 0:00:00]} 4. Bg2 {[%emt 0:00:00]} g6 {[%emt 0:00:00]} 5. d4 {[%emt 0:00:00]} cxd4 {[%emt 0:00:00]} 6. Nxd4 {[%emt 0:00:00]} Bg7 {[%emt 0:00:00]} 7. Nxc6 {[%emt 0:00:00]} bxc6 {[%emt 0:00:00]} 8. O-O {[%emt 0:00:00]} Qc7 {[%emt 0:00:00]} 9. Nc3 {[%emt 0:00:00]} Rb8 {[%emt 0:00:00]} 10. Qf3 {[%emt 0:00:00]} Bb7 {[%emt 0:00:00]} 11. Be3 {[%emt 0:00:00]} Ba8 {[%emt 0:00:00]} 12. Rfe1 {[%emt 0:00:00]} Rxb2 {[%emt 0:00:00]} 13. e5 {[%emt 0:00:00]} Bxe5 {[%emt 0:00:00]} 14. Ne4 {[%emt 0:00:00]} Kf8 {[%emt 0:00:00]} 15. Rad1 {[%emt 0:00:00]} Rxc2 {[%emt 0:00:00]} 16. Bf4 {[%emt 0:00:00]} Bxf4 {[%emt 0:00:00]} 17. gxf4 {[%emt 0:00:00]} d5 {[%emt 0:00:00]} 18. Qb3 {[%emt 0:00:00]} Rc4 {[%emt 0:00:14]} 19. Rb1 {[%emt 0:00:00]} Nf6 {[%emt 0:00:00]} 20. Nxf6 {[%emt 0:00:00]} Kg7 {[%emt 0:00:12]} 21. Ng4 {[%emt 0:00:00]} Rxf4 {[%emt 0:00:09]} 22. Qg3 {[%emt 0:01:04]} Rb8 {[%emt 0:00:44]} 23. Rxb8 {[%emt 0:00:31]} Qxb8 {[%emt 0:00:01]} 24. Rxe7 {[%emt 0:00:11]} Qb4 {[%emt 0:00:24]} 25. Ne3 {[%emt 0:01:19]} h5 {[%emt 0:00:24]} 26. Rxa7 {[%emt 0:00:18]} h4 {[%emt 0:00:03]} 27. Qg5 {[%emt 0:00:06]} Qe1+ {[%emt 0:00:03]} 28. Nf1 {[%emt 0:00:13]} Qxf2+ {[%emt 0:00:12]} 29. Kh1 {[%emt 0:00:01]} Qxa7 {[%emt 0:01:38]} 30. Qxf4 {[%emt 0:00:03]} Qxa2 {[%emt 0:00:04]} 31. Qd4+ {[%emt 0:00:25]} Kg8 {[%emt 0:00:04]} 32. Qxh4 {[%emt 0:00:03]} Qa1 {[%emt 0:00:07]} 33. Kg1 {[%emt 0:00:10]} Bb7 {[%emt 0:00:10]} 34. Qd8+ {[%emt 0:00:02]} Kg7 {[%emt 0:00:02]} 35. Qb6 {[%emt 0:00:02]} Ba6 {[%emt 0:00:50]} 36. Qxc6 {[%emt 0:00:41]} Qd4+ {[%emt 0:00:01]} 37. Kh1 {[%emt 0:00:03]} Qa1 {[%emt 0:00:36]} 38. Kg1 {[%emt 0:00:23]} Qd4+ {[%emt 0:00:01]} 39. Kh1 {[%emt 0:00:01]} Bc4 {[%emt 0:00:06]} 40. Qa4 {[%emt 0:00:15]} Qf2 {[%emt 0:00:25]} 41. Qa1+ {[%emt 0:00:02]} d4 {[%emt 0:00:05]} 42. Ng3 {[%emt 0:00:12]} Kh7 {[%emt 0:00:19]} 43. Qc1 {[%emt 0:00:04]} Be6 {[%emt 0:00:11]} 44. Ne4 {[%emt 0:00:04]} Qe3 {[%emt 0:00:12]} 45. Qxe3 {[%emt 0:00:41]} dxe3 {[%emt 0:00:01]} 46. Kg1 {[%emt 0:00:01]} Kh6 {[%emt 0:00:07]} 47. Kf1 {[%emt 0:00:03]} f5 {[%emt 0:00:04]} 48. Nc3 {[%emt 0:00:16]} Bc4+ {[%emt 0:00:08]} 49. Ke1 {[%emt 0:00:01]} Kg5 {[%emt 0:00:20]} 50. Nd5 {[%emt 0:00:56]} f4 {[%emt 0:00:12]} 51. Bf3 {[%emt 0:00:14]} Bxd5 {[%emt 0:00:19]} 52. Bxd5 {[%emt 0:00:01]} Kg4 {[%emt 0:00:03]} 53. Be6+ {[%emt 0:00:01]} Kf3 {[%emt 0:00:04]} 54. Bd5+ {[%emt 0:00:04]} Kg4 {[%emt 0:00:16]} 55. Be6+ {[%emt 0:00:00]} Kf3 {[%emt 0:00:07]} 56. Bd5+ {[%emt 0:00:01]} Kg4 {[%emt 0:00:12]} 57. Be6+ {[%emt 0:00:04]} Kf3 {[%emt 0:00:22]} 58. Bd5+ {[%emt 0:00:03]} Kg4 {[%emt 0:00:02]} 59. Be6+ {[%emt 0:00:01] Kf5 [%clk 00:00:00]} 1/2-1/2

[Event "11th LCC Rapid 2019"]
[Site "London"]
[Date "2019.12.07"]
[Round "2.2"]
[White "Hebden, Mark L"]
[Black "Brozel, Sacha"]
[Result "1-0"]
[WhiteElo "2433"]
[BlackElo "2188"]
[PlyCount "121"]
[EventDate "2019.12.08"]
[EventType "swiss"]
[EventCountry "ENG"]
[TimeControl "15+10"]
[WhiteClock "0:00:19"]
[BlackClock "0:08:45"]

1. d4 {[%emt 0:00:00]} Nf6 {[%emt 0:00:00]} 2. Nc3 {[%emt 0:00:00]} d5 {[%emt 0:00:00]} 3. Bf4 {[%emt 0:00:00]} c5 {[%emt 0:00:00]} 4. e3 {[%emt 0:00:00]} cxd4 {[%emt 0:00:00]} 5. exd4 {[%emt 0:00:00]} a6 {[%emt 0:00:00]} 6. Bd3 {[%emt 0:00:00]} Nc6 {[%emt 0:00:00]} 7. Nge2 {[%emt 0:00:00]} Bg4 {[%emt 0:00:00]} 8. f3 {[%emt 0:00:00]} Bh5 {[%emt 0:00:00]} 9. g4 {[%emt 0:00:00]} Bg6 {[%emt 0:00:00]} 10. h4 {[%emt 0:00:00]} e6 {[%emt 0:00:00]} 11. h5 {[%emt 0:00:00]} Bxd3 {[%emt 0:00:00]} 12. Qxd3 {[%emt 0:00:00]} h6 {[%emt 0:00:00]} 13. O-O-O {[%emt 0:00:00]} Bd6 {[%emt 0:00:00]} 14. Qe3 {[%emt 0:00:00]} b5 {[%emt 0:00:00]} 15. Kb1 {[%emt 0:00:00]} Rc8 {[%emt 0:00:00]} 16. Rhe1 {[%emt 0:00:00]} Qc7 {[%emt 0:00:00]} 17. Bxd6 {[%emt 0:00:00]} Qxd6 {[%emt 0:00:00]} 18. Qf4 {[%emt 0:00:00]} Qxf4 {[%emt 0:00:00]} 19. Nxf4 {[%emt 0:00:00]} Kd7 {[%emt 0:00:00]} 20. Nd3 {[%emt 0:00:00]} Kc7 {[%emt 0:00:00]} 21. Ne5 {[%emt 0:00:00]} Nxe5 {[%emt 0:00:00]} 22. Rxe5 {[%emt 0:00:00]} Kd6 {[%emt 0:00:00]} 23. Re3 {[%emt 0:00:00]} Rc6 {[%emt 0:00:00]} 24. Ne2 {[%emt 0:00:00]} Rhc8 {[%emt 0:00:00]} 25. c3 {[%emt 0:00:00]} a5 {[%emt 0:00:00]} 26. Nf4 {[%emt 0:00:00]} Rb6 {[%emt 0:00:00]} 27. Nd3 {[%emt 0:00:00]} Rc7 {[%emt 0:00:00]} 28. Rg1 {[%emt 0:00:00]} Rb8 {[%emt 0:00:00]} 29. a3 {[%emt 0:00:00]} Rh8 {[%emt 0:00:14]} 30. Re2 {[%emt 0:00:00]} Nd7 {[%emt 0:00:22]} 31. g5 {[%emt 0:00:00]} hxg5 {[%emt 0:00:21]} 32. Rxg5 {[%emt 0:00:00]} Nf6 {[%emt 0:00:46]} 33. Rxg7 {[%emt 0:00:00]} Nxh5 {[%emt 0:00:03]} 34. Rh2 {[%emt 0:00:00]} Nxg7 {[%emt 0:00:17]} 35. Rxh8 {[%emt 0:00:00]} f6 {[%emt 0:00:48]} 36. Rf8 {[%emt 0:00:00]} Nh5 {[%emt 0:00:37]} 37. Ra8 {[%emt 0:00:00]} a4 {[%emt 0:00:15]} 38. Ra5 {[%emt 0:00:00]} e5 {[%emt 0:00:21]} 39. Ra6+ {[%emt 0:00:00]} Rc6 {[%emt 0:00:23]} 40. dxe5+ {[%emt 0:00:00]} fxe5 {[%emt 0:00:08]} 41. Rxc6+ {[%emt 0:00:00]} Kxc6 {[%emt 0:00:01]} 42. Nxe5+ {[%emt 0:00:00]} Kc5 {[%emt 0:00:03]} 43. Kc2 {[%emt 0:00:00]} d4 {[%emt 0:00:21]} 44. Kd3 {[%emt 0:00:00]} Nf4+ {[%emt 0:00:40]} 45. Ke4 {[%emt 0:00:00]} dxc3 {[%emt 0:00:01]} 46. bxc3 {[%emt 0:00:00]} Ne2 {[%emt 0:00:09]} 47. Kd3 {[%emt 0:00:00]} Nf4+ {[%emt 0:00:05]} 48. Kd2 {[%emt 0:00:00]} Kd5 {[%emt 0:00:20]} 49. Nd3 {[%emt 0:00:00]} Ne6 {[%emt 0:00:12]} 50. Nb2 {[%emt 0:00:00]} Kd6 {[%emt 0:00:56]} 51. Ke3 {[%emt 0:00:00]} Ke5 {[%emt 0:00:07]} 52. c4 {[%emt 0:00:00]} b4 {[%emt 0:00:27]} 53. Nd3+ {[%emt 0:00:00]} Kd6 {[%emt 0:00:10]} 54. axb4 {[%emt 0:00:00]} a3 {[%emt 0:00:07]} 55. Nc1 {[%emt 0:00:00]} Ke5 {[%emt 0:00:40]} 56. Na2 {[%emt 0:00:00]} Nf4 {[%emt 0:00:18]} 57. b5 {[%emt 0:00:00]} Ne6 {[%emt 0:00:03]} 58. f4+ {[%emt 0:01:34]} Nxf4 {[%emt 0:00:29]} 59. b6 {[%emt 0:00:01]} Ng2+ {[%emt 0:00:06]} 60. Kf2 {[%emt 0:00:01]} Kd6 {[%emt 0:00:06]} 61. Kxg2 {[%emt 0:00:04]} 1-0

[Event "11th LCC Rapid 2019"]
[Site "London"]
[Date "2019.12.07"]
[Round "2.3"]
[White "Eames, Robert S"]
[Black "Arkell, Keith C"]
[Result "1/2-1/2"]
[WhiteElo "2150"]
[BlackElo "2453"]
[PlyCount "83"]
[EventDate "2019.12.08"]
[EventType "swiss"]
[EventCountry "ENG"]
[TimeControl "15+10"]

1. e4 {[%emt 0:24:38]} c6 {[%emt 0:00:02]} 2. d4 {[%emt 0:00:03]} d5 {[%emt 0:00:01]} 3. e5 {[%emt 0:00:03]} c5 4. dxc5 {[%emt 0:00:03]} Nc6 {[%emt 0:00:01]} 5. a3 {[%emt 0:00:03]} Nxe5 {[%emt 0:00:12]} 6. b4 {[%emt 0:00:07]} Nf6 {[%emt 0:00:10]} 7. Bb2 {[%emt 0:00:14]} Nc6 {[%emt 0:00:02]} 8. Nf3 {[%emt 0:00:21]} Bg4 {[%emt 0:00:02]} 9. Bb5 {[%emt 0:00:15]} e6 {[%emt 0:00:05]} 10. Nbd2 {[%emt 0:00:21]} Be7 {[%emt 0:00:10]} 11. h3 {[%emt 0:00:05]} Bxf3 {[%emt 0:00:01]} 12. Qxf3 {[%emt 0:00:56]} O-O {[%emt 0:00:05]} 13. O-O {[%emt 0:00:05]} a5 {[%emt 0:00:02]} 14. Bxc6 {[%emt 0:01:02]} bxc6 {[%emt 0:00:01]} 15. c4 {[%emt 0:00:20]} Qb8 {[%emt 0:01:31]} 16. Qc3 {[%emt 0:00:15]} Qb7 {[%emt 0:00:21]} 17. Nb3 {[%emt 0:00:29]} axb4 {[%emt 0:00:56]} 18. axb4 {[%emt 0:00:03]} Rfb8 {[%emt 0:00:45]} 19. Na5 {[%emt 0:04:06]} Qc7 {[%emt 0:00:23]} 20. cxd5 {[%emt 0:00:20]} exd5 {[%emt 0:00:16]} 21. Rfe1 {[%emt 0:00:20]} Bf8 {[%emt 0:00:12]} 22. Qe5 {[%emt 0:01:03]} Qxe5 {[%emt 0:00:27]} 23. Bxe5 {[%emt 0:00:06]} Rc8 {[%emt 0:03:15]} 24. Nb7 {[%emt 0:01:21]} Nd7 {[%emt 0:00:21]} 25. Bd6 {[%emt 0:00:07]} g6 {[%emt 0:00:39]} 26. Bxf8 {[%emt 0:00:23]} Kxf8 {[%emt 0:00:16]} 27. Nd6 {[%emt 0:00:06]} Rcb8 {[%emt 0:01:19]} 28. b5 {[%emt 0:00:39]} Nxc5 {[%emt 0:03:27]} 29. bxc6 {[%emt 0:00:37]} Rxa1 {[%emt 0:00:17]} 30. Rxa1 {[%emt 0:00:03]} Ne6 {[%emt 0:00:05]} 31. Ra7 {[%emt 0:01:32]} Rd8 {[%emt 0:01:31]} 32. Nxf7 {[%emt 0:01:41]} Rc8 {[%emt 0:00:11]} 33. Ne5 {[%emt 0:00:10]} Rc7 {[%emt 0:00:47]} 34. Rxc7 {[%emt 0:01:03]} Nxc7 {[%emt 0:00:02]} 35. f4 {[%emt 0:00:05]} Ke7 {[%emt 0:00:02]} 36. Kf2 {[%emt 0:00:05]} Kd6 {[%emt 0:00:03]} 37. Ke3 {[%emt 0:00:11]} Ne6 {[%emt 0:00:03]} 38. g4 {[%emt 0:00:07]} Nd8 {[%emt 0:00:46]} 39. Kd4 {[%emt 0:00:31]} Ne6+ 40. Ke3 {[%emt 0:00:01]} Nd8 {[%emt 0:00:08]} 41. Kd4 {[%emt 0:00:01]} Ne6+ {[%emt 0:00:04]} 42. Ke3 {[%emt 0:00:01]} 1/2-1/2

[Event "11th LCC Rapid 2019"]
[Site "London"]
[Date "2019.12.07"]
[Round "2.4"]
[White "Marusenko, Petr"]
[Black "Clarke, Brandon Gi"]
[Result "1/2-1/2"]
[WhiteElo "2085"]
[BlackElo "2380"]
[PlyCount "122"]
[EventDate "2019.12.08"]
[EventType "swiss"]
[EventCountry "ENG"]
[TimeControl "15+10"]
[WhiteClock "0:00:52"]
[BlackClock "0:04:52"]

1. d4 {[%emt 0:00:00]} Nf6 {[%emt 0:00:00]} 2. c4 {[%emt 0:00:00]} g6 {[%emt 0:00:00]} 3. Nc3 {[%emt 0:00:00]} Bg7 {[%emt 0:00:00]} 4. g3 {[%emt 0:00:00]} O-O {[%emt 0:00:00]} 5. Bg2 {[%emt 0:00:00]} d6 {[%emt 0:00:00]} 6. Nf3 {[%emt 0:00:00]} Nbd7 {[%emt 0:00:00]} 7. O-O {[%emt 0:00:00]} e5 {[%emt 0:00:00]} 8. h3 {[%emt 0:00:00]} c6 {[%emt 0:00:00]} 9. e4 {[%emt 0:00:00]} Qb6 {[%emt 0:00:00]} 10. b3 {[%emt 0:00:00]} exd4 {[%emt 0:00:00]} 11. Na4 {[%emt 0:00:00]} Qa5 {[%emt 0:00:00]} 12. Nxd4 {[%emt 0:00:00]} Re8 {[%emt 0:00:00]} 13. Re1 {[%emt 0:00:00]} Nxe4 {[%emt 0:00:00]} 14. Bd2 {[%emt 0:00:00]} Qc7 {[%emt 0:00:00]} 15. Bf4 {[%emt 0:00:00]} Nef6 {[%emt 0:00:00]} 16. c5 {[%emt 0:00:00]} Ne5 {[%emt 0:00:00]} 17. cxd6 {[%emt 0:00:00]} Qxd6 {[%emt 0:00:00]} 18. Nb2 {[%emt 0:00:00]} Nfd7 {[%emt 0:00:00]} 19. Nc4 {[%emt 0:00:00]} Qf8 {[%emt 0:00:22]} 20. Qe2 {[%emt 0:00:00]} f6 {[%emt 0:00:20]} 21. Rad1 {[%emt 0:00:00]} Nb6 {[%emt 0:00:22]} 22. Nxe5 {[%emt 0:00:00]} fxe5 {[%emt 0:00:01]} 23. Nf3 {[%emt 0:00:00]} Bg4 {[%emt 0:01:52]} 24. Be3 {[%emt 0:00:00]} Bxf3 {[%emt 0:00:20]} 25. Bxf3 {[%emt 0:00:00]} e4 {[%emt 0:00:34]} 26. Bg2 {[%emt 0:00:00]} Nd5 {[%emt 0:00:01]} 27. Qc4 {[%emt 0:00:00]} Qf5 {[%emt 0:00:27]} 28. Bd4 {[%emt 0:00:00]} Bxd4 {[%emt 0:00:12]} 29. Rxd4 {[%emt 0:00:00]} Qf7 {[%emt 0:00:21]} 30. Rdxe4 {[%emt 0:00:00]} Nf6 {[%emt 0:00:08]} 31. Rxe8+ {[%emt 0:00:00]} Rxe8 {[%emt 0:00:01]} 32. Rxe8+ {[%emt 0:00:00]} Nxe8 {[%emt 0:00:00]} 33. Qxf7+ {[%emt 0:00:00]} Kxf7 {[%emt 0:00:01]} 34. Kf1 {[%emt 0:00:00]} Ke6 {[%emt 0:00:02]} 35. Ke2 {[%emt 0:00:00]} Ke5 {[%emt 0:00:21]} 36. Ke3 {[%emt 0:00:00]} g5 {[%emt 0:00:01]} 37. f4+ {[%emt 0:00:00]} gxf4+ {[%emt 0:00:01]} 38. gxf4+ {[%emt 0:00:00]} Kd6 {[%emt 0:00:07]} 39. Ke4 {[%emt 0:00:00]} a5 {[%emt 0:00:19]} 40. Kf5 {[%emt 0:00:00]} Ng7+ {[%emt 0:00:27]} 41. Kf6 {[%emt 0:00:33]} Ne6 {[%emt 0:00:02]} 42. f5 {[%emt 0:00:05]} Nf4 {[%emt 0:00:01]} 43. Bf1 {[%emt 0:00:00]} b5 {[%emt 0:00:06]} 44. Kg7 {[%emt 0:00:22]} Ke5 {[%emt 0:00:07]} 45. f6 {[%emt 0:00:16]} Nh5+ {[%emt 0:00:01]} 46. Kxh7 {[%emt 0:00:02]} Kxf6 {[%emt 0:00:22]} 47. h4 {[%emt 0:00:24]} Nf4 {[%emt 0:00:17]} 48. a4 {[%emt 0:00:25]} bxa4 {[%emt 0:00:14]} 49. bxa4 {[%emt 0:00:01]} Kf7 {[%emt 0:00:25]} 50. Kh6 {[%emt 0:00:35]} Kg8 {[%emt 0:00:24]} 51. Bc4+ {[%emt 0:00:10]} Kh8 {[%emt 0:00:05]} 52. Kg5 {[%emt 0:00:08]} Ng2 {[%emt 0:00:02]} 53. h5 {[%emt 0:01:02]} c5 {[%emt 0:00:07]} 54. Be6 {[%emt 0:00:23]} Ne1 {[%emt 0:00:23]} 55. Kf4 {[%emt 0:00:15]} Nd3+ {[%emt 0:00:09]} 56. Ke4 {[%emt 0:00:28]} Nb2 {[%emt 0:00:06]} 57. Bd7 {[%emt 0:00:02]} Kg7 {[%emt 0:00:08]} 58. Bb5 {[%emt 0:00:03]} Kh6 {[%emt 0:00:05]} 59. Kd5 {[%emt 0:00:04]} c4 {[%emt 0:00:02]} 60. Kd4 {[%emt 0:00:13]} Kxh5 {[%emt 0:00:04]} 61. Kc3 {[%emt 0:00:02]} Nxa4+ {[%emt 0:00:03]} 1/2-1/2

[Event "11th LCC Rapid 2019"]
[Site "London"]
[Date "2019.12.07"]
[Round "2.5"]
[White "Harvey, Marcus R"]
[Black "Mitra, Roman C"]
[Result "1-0"]
[WhiteElo "2412"]
[BlackElo "2132"]
[PlyCount "91"]
[EventDate "2019.12.08"]
[EventType "swiss"]
[EventCountry "ENG"]
[TimeControl "15+10"]
[WhiteClock "0:03:08"]
[BlackClock "0:13:05"]

1. Nf3 {[%emt 0:00:00]} g6 {[%emt 0:00:00]} 2. e4 {[%emt 0:00:00]} c5 {[%emt 0:00:00]} 3. c4 {[%emt 0:00:00]} Bg7 {[%emt 0:00:00]} 4. Nc3 {[%emt 0:00:00]} e5 {[%emt 0:00:00]} 5. h4 {[%emt 0:00:00]} h6 {[%emt 0:00:00]} 6. d3 {[%emt 0:00:00]} Ne7 {[%emt 0:00:00]} 7. Be3 {[%emt 0:00:00]} d6 {[%emt 0:00:00]} 8. Qd2 {[%emt 0:00:00]} Nbc6 {[%emt 0:00:00]} 9. Be2 {[%emt 0:00:00]} a6 {[%emt 0:00:00]} 10. Bd1 {[%emt 0:00:00]} Rb8 {[%emt 0:00:00]} 11. Ba4 {[%emt 0:00:00]} Bd7 {[%emt 0:00:00]} 12. Nh2 {[%emt 0:00:00]} Nd4 {[%emt 0:00:00]} 13. Bxd7+ {[%emt 0:00:00]} Qxd7 {[%emt 0:00:00]} 14. Bxd4 {[%emt 0:00:00]} cxd4 {[%emt 0:00:00]} 15. Ne2 {[%emt 0:00:00]} O-O {[%emt 0:00:00]} 16. h5 {[%emt 0:00:00]} g5 {[%emt 0:00:00]} 17. g4 {[%emt 0:00:00]} Rfc8 {[%emt 0:00:00]} 18. O-O {[%emt 0:00:00]} b5 {[%emt 0:00:00]} 19. b3 {[%emt 0:00:00]} Rc7 {[%emt 0:00:19]} 20. Ng3 {[%emt 0:00:00]} bxc4 {[%emt 0:00:00]} 21. dxc4 {[%emt 0:00:00]} Nc6 {[%emt 0:00:00]} 22. Nf5 {[%emt 0:00:00]} Bf8 {[%emt 0:00:00]} 23. Nf3 {[%emt 0:00:00]} f6 {[%emt 0:00:00]} 24. Ne1 {[%emt 0:00:00]} a5 {[%emt 0:00:00]} 25. Nd3 {[%emt 0:00:00]} Nb4 {[%emt 0:00:00]} 26. Nxb4 {[%emt 0:00:00]} Rxb4 {[%emt 0:00:00]} 27. Rab1 {[%emt 0:00:00]} Rcb7 {[%emt 0:00:00]} 28. Rb2 {[%emt 0:00:00]} Qc6 {[%emt 0:00:00]} 29. Ng3 {[%emt 0:00:00]} a4 {[%emt 0:00:00]} 30. Rfb1 {[%emt 0:00:00]} Qc8 {[%emt 0:00:00]} 31. Qe2 {[%emt 0:00:00]} Qb8 {[%emt 0:01:16]} 32. Qd3 {[%emt 0:00:00]} Kf7 {[%emt 0:00:15]} 33. Kh2 {[%emt 0:00:00]} Be7 {[%emt 0:00:04]} 34. Nf5 {[%emt 0:00:00]} Bf8 {[%emt 0:00:02]} 35. Ng3 {[%emt 0:00:00]} Be7 {[%emt 0:00:02]} 36. Kg2 {[%emt 0:00:00]} Bf8 {[%emt 0:00:59]} 37. Nf1 {[%emt 0:00:00]} Be7 {[%emt 0:00:11]} 38. Nd2 {[%emt 0:00:00]} Bd8 {[%emt 0:00:05]} 39. a3 {[%emt 0:00:06]} R4b6 {[%emt 0:00:03]} 40. b4 {[%emt 0:00:00]} Rc6 {[%emt 0:00:03]} 41. Rc2 {[%emt 0:00:00]} Qc8 {[%emt 0:00:16]} 42. Kh3 {[%emt 0:00:00]} Qa8 {[%emt 0:00:51]} 43. Nf1 {[%emt 0:00:00]} Qc8 {[%emt 0:00:04]} 44. Ng3 {[%emt 0:00:00]} Rbc7 {[%emt 0:00:02]} 45. Nf5 {[%emt 0:00:00]} Rxc4 {[%emt 0:00:05]} 46. Nxd6+ {[%emt 0:00:00]} 1-0

[Event "11th LCC Rapid 2019"]
[Site "London"]
[Date "2019.12.07"]
[Round "2.6"]
[White "Walker, Samuel A"]
[Black "Haydon, David L"]
[Result "0-1"]
[WhiteElo "2039"]
[BlackElo "2294"]
[PlyCount "60"]
[EventDate "2019.12.08"]
[EventType "swiss"]
[EventCountry "ENG"]
[TimeControl "15+10"]
[WhiteClock "0:09:44"]
[BlackClock "0:05:40"]

1. Nf3 {[%emt 0:00:00]} c6 {[%emt 0:00:00]} 2. b3 {[%emt 0:00:00]} d5 {[%emt 0:00:00]} 3. Bb2 {[%emt 0:00:00]} Nf6 {[%emt 0:00:00]} 4. g3 {[%emt 0:00:00]} e6 {[%emt 0:00:00]} 5. Bg2 {[%emt 0:00:00]} Bd6 {[%emt 0:00:00]} 6. O-O {[%emt 0:00:00]} O-O {[%emt 0:00:00]} 7. c4 {[%emt 0:00:00]} Nbd7 {[%emt 0:00:00]} 8. Nc3 {[%emt 0:00:00]} b6 {[%emt 0:00:00]} 9. d3 {[%emt 0:00:00]} Bb7 {[%emt 0:00:00]} 10. Rc1 {[%emt 0:00:00]} a6 {[%emt 0:00:00]} 11. Qc2 {[%emt 0:00:00]} Qe7 {[%emt 0:00:00]} 12. e4 {[%emt 0:00:00]} dxe4 {[%emt 0:00:00]} 13. Nxe4 {[%emt 0:00:00]} Nxe4 {[%emt 0:00:00]} 14. dxe4 {[%emt 0:00:00]} e5 {[%emt 0:00:00]} 15. Rcd1 {[%emt 0:00:00]} Rad8 {[%emt 0:00:00]} 16. Rd2 {[%emt 0:00:00]} f6 {[%emt 0:00:00]} 17. Bh3 {[%emt 0:00:00]} c5 {[%emt 0:00:00]} 18. Nh4 {[%emt 0:00:00]} g6 {[%emt 0:00:00]} 19. Rfd1 {[%emt 0:00:00]} Nb8 {[%emt 0:00:00]} 20. Qd3 {[%emt 0:00:00]} Nc6 {[%emt 0:00:00]} 21. Qxd6 {[%emt 0:00:00]} Rxd6 {[%emt 0:00:00]} 22. Rxd6 {[%emt 0:00:00]} Rd8 {[%emt 0:00:00]} 23. Rxd8+ {[%emt 0:00:00]} Nxd8 {[%emt 0:00:00]} 24. Rd7 {[%emt 0:00:00]} Qe8 {[%emt 0:00:00]} 25. Rc7 {[%emt 0:00:00]} Bxe4 {[%emt 0:00:00]} 26. f4 {[%emt 0:00:00]} Ne6 {[%emt 0:00:00]} 27. Ra7 {[%emt 0:00:00]} Nd4 {[%emt 0:00:00]} 28. Rc7 {[%emt 0:00:00]} f5 {[%emt 0:00:00]} 29. Bg2 {[%emt 0:00:00]} Bxg2 {[%emt 0:00:00]} 30. Nxg2 {[%emt 0:00:00]} exf4 {[%emt 0:00:00]} 0-1

[Event "11th LCC Rapid 2019"]
[Site "London"]
[Date "2019.12.07"]
[Round "2.7"]
[White "Cordes, Hans-Joerg"]
[Black "O'Gorman, Tom"]
[Result "0-1"]
[WhiteElo "2207"]
[BlackElo "2001"]
[PlyCount "86"]
[EventDate "2019.12.08"]
[EventType "swiss"]
[EventCountry "ENG"]
[TimeControl "15+10"]
[WhiteClock "0:02:17"]
[BlackClock "0:01:57"]

1. d4 {[%emt 0:00:00]} Nf6 {[%emt 0:00:00]} 2. c4 {[%emt 0:00:00]} g6 {[%emt 0:00:00]} 3. Nc3 {[%emt 0:00:00]} Bg7 {[%emt 0:00:00]} 4. e4 {[%emt 0:00:00]} d6 {[%emt 0:00:00]} 5. f3 {[%emt 0:00:00]} O-O {[%emt 0:00:00]} 6. Nge2 {[%emt 0:00:00]} c5 {[%emt 0:00:00]} 7. d5 {[%emt 0:00:00]} e6 {[%emt 0:00:00]} 8. Ng3 {[%emt 0:00:00]} exd5 {[%emt 0:00:00]} 9. cxd5 {[%emt 0:00:00]} Nbd7 {[%emt 0:00:00]} 10. Be2 {[%emt 0:00:00]} a6 {[%emt 0:00:00]} 11. a4 {[%emt 0:00:00]} Qb6 {[%emt 0:00:00]} 12. O-O {[%emt 0:00:00]} h5 {[%emt 0:00:00]} 13. a5 {[%emt 0:00:00]} Qc7 {[%emt 0:00:00]} 14. Be3 {[%emt 0:00:00]} b5 {[%emt 0:00:00]} 15. axb6 {[%emt 0:00:00]} Qxb6 {[%emt 0:00:00]} 16. Qd2 {[%emt 0:00:00]} Re8 {[%emt 0:00:00]} 17. Rfb1 {[%emt 0:00:00]} Qb8 {[%emt 0:00:00]} 18. Bf1 {[%emt 0:00:00]} Ne5 {[%emt 0:00:00]} 19. h3 {[%emt 0:00:00]} Bxh3 {[%emt 0:00:00]} 20. Rxa6 {[%emt 0:00:00]} Rxa6 {[%emt 0:00:00]} 21. Bxa6 {[%emt 0:00:00]} Bd7 {[%emt 0:00:00]} 22. Bf1 {[%emt 0:00:00]} h4 {[%emt 0:00:00]} 23. Nh1 {[%emt 0:00:00]} h3 {[%emt 0:00:00]} 24. Nf2 {[%emt 0:00:00]} Nh5 {[%emt 0:00:00]} 25. f4 {[%emt 0:00:00]} hxg2 {[%emt 0:00:00]} 26. Be2 {[%emt 0:00:00]} Qd8 {[%emt 0:00:00]} 27. fxe5 {[%emt 0:00:00]} Qh4 {[%emt 0:00:00]} 28. Bg5 {[%emt 0:00:00]} Qg3 {[%emt 0:00:00]} 29. Qe3 {[%emt 0:00:00]} Qxe5 {[%emt 0:00:31]} 30. Kxg2 {[%emt 0:01:57]} f6 {[%emt 0:00:31]} 31. Bxh5 {[%emt 0:00:17]} fxg5 {[%emt 0:00:34]} 32. Bxg6 {[%emt 0:00:02]} Rf8 {[%emt 0:00:01]} 33. Nd3 {[%emt 0:00:30]} Qf6 {[%emt 0:00:25]} 34. Bh5 {[%emt 0:00:03]} g4 {[%emt 0:00:34]} 35. Ne2 {[%emt 0:00:08]} Bh6 {[%emt 0:00:43]} 36. Qg3 {[%emt 0:00:12]} Qg5 {[%emt 0:00:13]} 37. Rf1 {[%emt 0:00:23]} Qxh5 {[%emt 0:00:17]} 38. Rxf8+ {[%emt 0:00:26]} Bxf8 {[%emt 0:00:07]} 39. Nef4 {[%emt 0:00:01]} Qg5 {[%emt 0:00:06]} 40. b3 {[%emt 0:00:08]} Bg7 {[%emt 0:00:21]} 41. Kf2 {[%emt 0:00:36]} Bb5 {[%emt 0:00:14]} 42. Ne2 {[%emt 0:00:37]} Qf6+ {[%emt 0:00:26]} 43. Kg2 {[%emt 0:00:08]} Qf3+ {[%emt 0:00:05]} 0-1